bitfinex-derivatives/quotes_BTCF0:USTF0_20240824
["timestamp","ask_amount","ask_price","bid_price","bid_amount"]
[1724464134704,0.3628,63726.0,63725.0,0.08064353]
[1724464135106,0.3628,63726.0,63725.0,0.00223553]
[1724464136014,0.441207,63726.0,63725.0,0.00223553]
[1724464136209,0.078408,63725.0,63721.0,0.05060768]
[1724464136409,0.05692466,63724.0,63721.0,0.05060768]
[1724464136615,0.05692466,63723.0,63721.0,0.05060768]
[1724464136916,0.05696466,63722.0,63721.0,0.05060768]
[1724464137220,0.0254569,63722.0,63721.0,0.05060768]
[1724464137512,0.05634083,63722.0,63721.0,0.05160768]
[1724464137709,0.05634083,63722.0,63721.0,0.05260768]
[1724464138010,0.36084,63722.0,63721.0,0.05260768]
[1724464138213,0.3862569,63722.0,63721.0,0.05260768]
[1724464138607,1.2570569,63722.0,63715.0,0.00023553]
[1724464138911,0.3608,63716.0,63706.0,0.078431]
[1724464139211,0.3608,63716.0,63701.0,0.078437]
[1724464139212,0.3608,63707.0,63701.0,0.078437]
[1724464139605,0.43923,63707.0,63702.0,0.078436]
[1724464139802,0.43923,63707.0,63698.0,0.00023553]
[1724464140008,0.43923,63707.0,63706.0,0.001]
[1724464140611,0.43923,63707.0,63704.0,0.078434]
[1724464140805,0.3608,63707.0,63705.0,0.078432]
[1724464141712,0.3608,63707.0,63706.0,0.0472]
[1724464142015,0.00023553,63711.0,63706.0,0.0472]
[1724464142416,0.3608,63710.0,63706.0,0.0472]
[1724464142613,0.3608,63710.0,63709.0,0.078427]
[1724464143617,0.3628,63710.0,63709.0,0.078427]
[1724464143923,0.3628,63710.0,63709.0,0.081427]
[1724464144311,0.3608,63710.0,63709.0,0.085427]
[1724464146007,0.0486,63730.0,63709.0,0.085427]
[1724464146008,0.078404,63728.0,63709.0,0.446227]
[1724464146207,0.078404,63728.0,63715.0,0.3608]
[1724464146513,0.3608,63729.0,63721.0,0.078413]
[1724464146911,0.00023553,63728.0,63721.0,0.078413]
[1724464147912,0.00023553,63728.0,63721.0,0.079413]
[1724464147913,0.00204,63722.0,63721.0,0.079413]
[1724464148718,0.00204,63722.0,63721.0,0.770213]
[1724464149121,0.00204,63722.0,63721.0,1.3183893]
[1724464149324,0.00204,63722.0,63721.0,1.271413]
[1724464149515,0.00023553,63728.0,63727.0,0.078406]
[1724464149720,0.4078,63740.0,63737.0,0.078393]
[1724464149923,0.3608,63740.0,63737.0,0.078393]
[1724464150314,0.3608,63740.0,63739.0,0.078391]
[1724464151017,0.3628,63740.0,63739.0,0.078391]
[1724464151431,0.02740937,63740.0,63739.0,0.079391]
[1724464151919,0.09501719,63740.0,63739.0,0.079391]
[1724464152117,0.02740937,63740.0,63739.0,0.079391]
[1724464152824,0.02740937,63740.0,63739.0,0.080391]
[1724464152825,0.02840937,63740.0,63739.0,0.080391]
[1724464153122,0.02840937,63740.0,63739.0,0.951071]
[1724464154119,0.09301719,63744.0,63742.0,0.078387]
[1724464154318,0.09325253,63746.0,63744.0,0.078385]
[1724464154519,0.02540517,63745.0,63744.0,0.078385]
[1724464154826,0.07751838,63745.0,63744.0,0.078385]
[1724464155226,0.00023534,63746.0,63744.0,0.949025]
[1724464155525,0.00023534,63746.0,63745.0,0.47064]
[1724464155919,0.00023534,63746.0,63745.0,0.87064]
[1724464156422,0.00023534,63746.0,63744.0,0.079385]
[1724464156927,0.07775372,63746.0,63744.0,0.078385]
[1724464157122,0.07775372,63746.0,63745.0,0.00096]
[1724464157318,0.02564034,63746.0,63745.0,0.00196]
[1724464157521,0.02564116,63746.0,63745.0,0.001]
[1724464158215,0.02564116,63746.0,63745.0,0.002]
[1724464158422,0.00023534,63746.0,63745.0,0.002]
[1724464159022,0.00023534,63746.0,63745.0,0.001]
[1724464159819,0.00023534,63746.0,63745.0,0.002]
[1724464161815,0.07861734,63746.0,63745.0,0.002]
[1724464165925,0.00023534,63746.0,63745.0,0.080384]
[1724464168936,0.00023534,63746.0,63745.0,0.079384]
[1724464169733,0.00023534,63746.0,63745.0,0.078384]
[1724464175234,0.00023534,63746.0,63741.0,0.06263507]
[1724464175235,0.36103534,63746.0,63741.0,0.06263507]
[1724464175443,0.36103534,63746.0,63740.0,0.06263507]
[1724464175632,0.43941834,63746.0,63743.0,0.04684841]
[1724464176141,0.43941834,63746.0,63742.0,0.078387]
[1724464176440,0.00023534,63746.0,63742.0,0.04684841]
[1724464176643,0.00023534,63746.0,63745.0,0.078384]
[1724464176943,0.078393,63738.0,63737.0,0.04680841]
[1724464177244,0.3608,63738.0,63733.0,0.00023534]
[1724464177442,0.078397,63734.0,63733.0,0.00023534]
[1724464178547,0.14054041,63734.0,63733.0,0.00023534]
[1724464178842,0.078397,63734.0,63733.0,0.00023534]
[1724464179039,0.14053961,63734.0,63733.0,0.00723534]
[1724464179240,0.14053961,63734.0,63733.0,0.01323534]
[1724464179241,0.078397,63734.0,63733.0,0.01323534]
[1724464180342,0.14054752,63734.0,63733.0,0.00723534]
[1724464180647,0.14054752,63734.0,63733.0,0.01323534]
[1724464180946,0.42295052,63735.0,63733.0,0.01323534]
[1724464181147,4e-05,63734.0,63733.0,0.01323534]
[1724464182837,4e-05,63734.0,63733.0,0.00623534]
[1724464183042,4e-05,63734.0,63733.0,0.01323534]
[1724464184549,0.36084,63734.0,63733.0,0.01323534]
[1724464184843,0.36084,63734.0,63733.0,0.09163434]
[1724464187744,4e-05,63734.0,63733.0,0.09163434]
[1724464187949,0.36084,63734.0,63733.0,0.09163434]
[1724464188142,0.36084,63734.0,63733.0,0.14123434]
[1724464188354,0.36084,63734.0,63733.0,0.20386941]
[1724464188654,0.36084,63734.0,63733.0,0.14123434]
[1724464190654,0.36084,63734.0,63733.0,0.20386941]
[1724464190856,0.36084,63734.0,63733.0,0.14123434]
[1724464191154,0.36084,63734.0,63733.0,0.14223434]
[1724464191155,4e-05,63734.0,63733.0,0.14223434]
[1724464191545,4e-05,63734.0,63733.0,1.01495434]
[1724464192455,0.36103534,63746.0,63744.0,0.078385]
[1724464192654,0.36103534,63746.0,63745.0,0.078384]
[1724464193559,0.36103534,63746.0,63740.0,0.07839]
[1724464194552,0.078384,63745.0,63741.0,0.078389]
[1724464195848,0.36103534,63746.0,63741.0,0.078389]
[1724464195849,0.078386,63744.0,63741.0,0.078389]
[1724464199257,0.3608,63742.0,63741.0,0.078389]
[1724464208253,0.06215052,63742.0,63741.0,0.078389]
[1724464208454,0.42295052,63742.0,63741.0,0.078389]
[1724464208662,0.42295052,63742.0,63733.0,0.04983534]
[1724464208663,0.078393,63738.0,63737.0,0.06250794]
[1724464208850,0.078394,63737.0,63736.0,0.06250794]
[1724464209050,0.06215052,63738.0,63734.0,0.078397]
[1724464209251,0.3608,63735.0,63734.0,0.078397]
[1724464209855,0.36084,63735.0,63734.0,0.078397]
[1724464210252,0.36084,63735.0,63734.0,0.083397]
[1724464210755,0.36084,63735.0,63734.0,0.078397]
[1724464210956,0.36084,63735.0,63734.0,0.083397]
[1724464211653,0.36084,63735.0,63734.0,0.14590494]
[1724464211853,0.36084,63735.0,63734.0,0.089397]
[1724464212264,0.36084,63735.0,63734.0,0.15190494]
[1724464212764,0.36084,63735.0,63734.0,0.089397]
[1724464213170,0.36084,63735.0,63734.0,0.15190494]
[1724464217268,0.36084,63735.0,63734.0,0.089397]
[1724464217467,0.36084,63735.0,63734.0,0.15205172]
[1724464218560,0.36084,63735.0,63734.0,0.14905172]
[1724464219361,0.36084,63735.0,63734.0,0.086397]
[1724464219763,0.36084,63735.0,63734.0,0.081397]
[1724464219964,0.36084,63735.0,63734.0,0.083397]
[1724464220463,0.36084,63735.0,63734.0,0.087397]
[1724464221066,0.36084,63735.0,63734.0,0.081397]
[1724464221265,0.36084,63735.0,63734.0,0.085397]
[1724464224170,0.36084,63735.0,63734.0,0.081397]
[1724464224470,0.36084,63735.0,63734.0,0.084397]
[1724464224670,0.36084,63735.0,63734.0,0.089397]
[1724464225071,0.36084,63735.0,63734.0,0.083397]
[1724464225371,0.36084,63735.0,63734.0,0.087397]
[1724464225759,0.38625081,63735.0,63734.0,0.087397]
[1724464226365,0.02545081,63735.0,63734.0,0.087397]
[1724464226574,4e-05,63735.0,63734.0,0.087397]
[1724464227670,4e-05,63735.0,63734.0,0.083397]
[1724464227869,4e-05,63735.0,63734.0,0.085397]
[1724464228764,4e-05,63735.0,63734.0,0.086397]
[1724464229972,4e-05,63735.0,63734.0,0.087397]
[1724464232077,4e-05,63735.0,63734.0,0.15005949]
[1724464232265,4e-05,63735.0,63734.0,0.087397]
[1724464233868,4e-05,63735.0,63734.0,0.082397]
[1724464234068,4e-05,63735.0,63734.0,0.087397]
[1724464235071,0.078436,63735.0,63734.0,0.009]
[1724464235375,0.078436,63735.0,63728.0,0.0976]
[1724464235376,0.078406,63728.0,63726.0,0.0783522]
[1724464235568,0.3608,63727.0,63724.0,0.06269366]
[1724464235768,0.42315126,63725.0,63724.0,0.06269366]
[1724464235970,0.3608,63725.0,63723.0,0.078411]
[1724464236378,0.3608,63725.0,63724.0,0.06267382]
[1724464236772,0.3608,63725.0,63724.0,0.14108382]
[1724464237482,0.42310893,63725.0,63724.0,0.07841]
[1724464237785,0.42310893,63725.0,63724.0,0.08441]
[1724464238374,0.42310893,63725.0,63724.0,0.09041]
[1724464239277,0.3608,63725.0,63724.0,0.09041]
[1724464240779,0.3608,63725.0,63718.0,0.00023534]
[1724464240780,0.078412,63722.0,63721.0,0.06267382]
[1724464240987,0.078413,63721.0,63720.0,0.06267382]
[1724464241284,0.078413,63721.0,63718.0,0.00023534]
[1724464241489,0.3608,63719.0,63718.0,0.00023534]
[1724464241978,0.3408,63719.0,63718.0,0.07865234]
[1724464242279,0.34084,63719.0,63718.0,0.07865234]
[1724464242484,0.34084,63719.0,63718.0,0.09165234]
[1724464243778,0.4074887,63725.0,63718.0,0.96249234]
[1724464243979,0.3608,63725.0,63724.0,0.07841]
[1724464244386,0.36172,63735.0,63729.0,0.078404]
[1724464244387,0.0466887,63734.0,63729.0,0.078404]
[1724464244790,0.0466887,63733.0,63729.0,0.078404]
[1724464245083,0.4074887,63735.0,63729.0,0.14097514]
[1724464245281,0.3616,63735.0,63729.0,0.078404]
[1724464245481,0.3608,63735.0,63729.0,0.078404]
[1724464245876,0.0466887,63736.0,63735.0,0.078396]
[1724464246077,0.0466887,63739.0,63737.0,0.078394]
[1724464246278,0.3616,63741.0,63739.0,0.078391]
[1724464246279,0.4074887,63741.0,63739.0,0.078391]
[1724464246574,0.3608,63741.0,63739.0,0.078391]
[1724464246889,0.06230893,63746.0,63739.0,0.078391]
[1724464246890,0.04692404,63746.0,63740.0,0.83148]
[1724464247083,0.04692404,63746.0,63740.0,0.3608]
[1724464247277,0.00023534,63746.0,63742.0,0.06256511]
[1724464247484,0.00023534,63746.0,63745.0,0.078384]
[1724464247687,0.00023534,63746.0,63745.0,0.14094911]
[1724464247880,0.00023534,63746.0,63745.0,0.078384]
[1724464248389,0.00623534,63746.0,63745.0,0.078384]
[1724464248590,0.00623534,63746.0,63745.0,0.14087553]
[1724464248892,0.01623534,63746.0,63745.0,0.14087553]
[1724464249282,0.02223534,63746.0,63745.0,0.078384]
[1724464249989,0.02223534,63746.0,63745.0,0.14087553]
[1724464250289,0.02223534,63746.0,63745.0,0.078384]
[1724464250693,0.02223534,63746.0,63745.0,0.298384]
[1724464251984,0.02223534,63746.0,63745.0,0.36087553]
[1724464252395,0.02223534,63746.0,63745.0,0.298384]
[1724464252688,0.02223534,63746.0,63745.0,0.36087553]
[1724464253279,0.02223534,63746.0,63745.0,0.298384]
[1724464253489,0.3608,63759.0,63757.0,0.078369]
[1724464254394,0.3608,63759.0,63758.0,0.078368]
[1724464255079,0.3888,63759.0,63758.0,0.078368]
[1724464255588,0.3888,63759.0,63758.0,0.079368]
[1724464257388,0.3888,63759.0,63758.0,0.080368]
[1724464257389,0.3748,63759.0,63758.0,0.080368]
[1724464257691,0.3758,63759.0,63758.0,0.080368]
[1724464259590,0.00023534,63765.0,63764.0,0.078361]
[1724464260293,0.00023534,63765.0,63764.0,0.298361]
[1724464260680,0.4536,63783.0,63764.0,0.298361]
[1724464260681,0.3608,63777.0,63774.0,0.078348]
[1724464261290,0.3608,63777.0,63776.0,0.078346]
[1724464261483,0.3608,63783.0,63781.0,0.078339]
[1724464262985,0.3608,63783.0,63781.0,0.079339]
[1724464264194,0.3688,63783.0,63781.0,0.080339]
[1724464265989,0.3688,63783.0,63782.0,0.0453]
[1724464266186,0.00015088,63788.0,63782.0,1.09646]
[1724464266386,0.00015088,63788.0,63782.0,0.6261]
[1724464267689,0.36095088,63788.0,63787.0,0.078332]
[1724464267893,0.36095088,63788.0,63782.0,0.4071]
[1724464268500,0.009,63783.0,63782.0,0.486438]
[1724464268796,0.00904,63783.0,63782.0,0.486438]
[1724464269496,0.00904,63783.0,63782.0,0.125638]
[1724464270093,0.00904,63783.0,63782.0,0.002]
[1724464270799,4e-05,63783.0,63782.0,0.001]
[1724464271096,4e-05,63783.0,63782.0,0.002]
[1724464271503,4e-05,63783.0,63782.0,0.001]
[1724464271700,4e-05,63783.0,63782.0,0.080338]
[1724464275186,4e-05,63783.0,63782.0,1.029036]
[1724464275390,0.00015088,63788.0,63787.0,0.078332]
[1724464276093,1e-08,63788.0,63787.0,1.123384]
[1724464276293,1e-08,63788.0,63787.0,1.30346154]
[1724464276497,0.3608,63803.0,63787.0,1.30346154]
[1724464276498,0.36679038,63803.0,63802.0,0.078314]
[1724464277694,0.36679038,63803.0,63802.0,0.079314]
[1724464278001,0.3608,63803.0,63802.0,0.079314]
[1724464278399,0.3628,63803.0,63802.0,0.080314]
[1724464278898,0.3628,63803.0,63802.0,0.171714]
[1724464279197,0.3616,63815.0,63810.0,0.078304]
[1724464279404,0.3608,63815.0,63805.0,0.3608]
[1724464279797,0.3608,63815.0,63813.0,0.0783]
[1724464280299,0.3628,63815.0,63813.0,0.0783]
[1724464280997,0.078302,63812.0,63805.0,0.3618]
[1724464281198,0.3608,63809.0,63802.0,0.0914]
[1724464281389,0.3608,63809.0,63805.0,0.07831]
[1724464281590,0.3608,63809.0,63806.0,0.078309]
[1724464282693,0.3608,63809.0,63807.0,0.078308]
[1724464283099,0.078299,63814.0,63808.0,0.078307]
[1724464283505,0.3608,63809.0,63808.0,0.078307]
[1724464284407,0.3608,63809.0,63808.0,0.079307]
[1724464284602,0.3608,63809.0,63808.0,0.080307]
[1724464286100,0.3608,63809.0,63808.0,0.079307]
[1724464286299,0.3608,63809.0,63808.0,0.080307]
[1724464288111,0.3608,63809.0,63808.0,0.128507]
[1724464288310,0.3608,63809.0,63808.0,0.080307]
[1724464289204,0.3608,63809.0,63808.0,0.002]
[1724464290098,0.439105,63809.0,63808.0,0.001]
[1724464290299,0.439105,63809.0,63808.0,0.002]
[1724464290500,0.3608,63809.0,63808.0,0.080307]
[1724464292811,1.23096,63809.0,63800.0,0.06217701]
[1724464293005,1.23096,63809.0,63796.0,0.00023513]
[1724464293006,0.3608,63802.0,63796.0,0.00023513]
[1724464293206,0.078319,63798.0,63796.0,0.00023513]
[1724464293507,0.5808,63800.0,63781.0,0.06231698]
[1724464293710,0.3608,63783.0,63781.0,0.00013997]
[1724464294409,4e-05,63782.0,63781.0,0.00013997]
[1724464294920,4e-05,63782.0,63781.0,0.00713997]
[1724464296410,4e-05,63782.0,63781.0,0.00313997]
[1724464296714,0.00204,63782.0,63781.0,0.00313997]
[1724464297012,0.00204,63782.0,63781.0,0.04691868]
[1724464299818,0.00204,63782.0,63781.0,0.00013997]
[1724464300314,0.00204,63782.0,63781.0,0.12525868]
[1724464300520,0.00204,63782.0,63781.0,0.07847997]
[1724464309426,4e-05,63782.0,63781.0,0.07847997]
[1724464309624,0.00104,63782.0,63781.0,0.07847997]
[1724464310430,4e-05,63782.0,63781.0,0.07847997]
[1724464310718,0.00104,63782.0,63781.0,0.12525868]
[1724464311615,0.00104,63782.0,63781.0,0.07847997]
[1724464312231,4e-05,63782.0,63781.0,0.07847997]
[1724464312520,4e-05,63782.0,63781.0,0.00713997]
[1724464312723,0.909539,63782.0,63781.0,0.00713997]
[1724464312924,0.909539,63782.0,63776.0,0.00023513]
[1724464312925,0.078343,63779.0,63776.0,0.00023513]
[1724464313224,0.3608,63778.0,63776.0,0.00023513]
[1724464313424,0.439144,63778.0,63776.0,0.00023513]
[1724464313626,4e-05,63777.0,63776.0,0.00023513]
[1724464316028,4e-05,63777.0,63776.0,0.00123513]
[1724464316320,4e-05,63777.0,63776.0,0.00223513]
[1724464316515,4e-05,63777.0,63776.0,0.00123513]
[1724464316717,4e-05,63777.0,63776.0,0.00223513]
[1724464317113,0.36084,63777.0,63776.0,0.00223513]
[1724464318831,4e-05,63777.0,63776.0,0.00223513]
[1724464319324,0.36084,63777.0,63776.0,0.00223513]
[1724464320023,4e-05,63777.0,63776.0,0.00223513]
[1724464320222,0.36084,63777.0,63776.0,0.08058113]
[1724464321320,0.36084,63777.0,63776.0,0.12735984]
[1724464321521,4e-05,63777.0,63776.0,0.08058113]
[1724464321719,4e-05,63777.0,63776.0,0.14275814]
[1724464321923,4e-05,63777.0,63776.0,0.1430549]
[1724464322222,4e-05,63777.0,63776.0,0.08058113]
[1724464323326,4e-05,63777.0,63776.0,0.27827829]
[1724464324223,4e-05,63777.0,63776.0,0.19992609]
[1724464324536,4e-05,63777.0,63776.0,0.27809736]
[1724464325221,4e-05,63777.0,63776.0,0.19992609]
[1724464325417,4e-05,63777.0,63776.0,0.27809704]
[1724464325625,0.00011044,63782.0,63781.0,0.07834]
[1724464325934,0.00011044,63782.0,63781.0,0.43914]
[1724464326120,0.00011044,63782.0,63781.0,0.65914]
[1724464326319,0.00011044,63782.0,63781.0,0.85664147]
[1724464326528,0.00011044,63782.0,63781.0,0.77847052]
[1724464326933,0.00411044,63782.0,63781.0,0.77847052]
[1724464327424,0.00411044,63782.0,63781.0,0.65914]
[1724464327623,0.00411044,63782.0,63781.0,0.77846821]
[1724464328530,0.00111044,63782.0,63781.0,0.55846821]
[1724464331133,0.00111044,63782.0,63781.0,0.63659941]
[1724464331321,0.00111044,63782.0,63781.0,0.5172712]
[1724464332435,0.00111044,63782.0,63781.0,0.43914]
[1724464332829,0.00111044,63782.0,63781.0,0.5172712]
[1724464333229,0.00111044,63782.0,63781.0,0.43914]
[1724464335534,0.00111044,63782.0,63781.0,0.9095]
[1724464335839,0.00111044,63782.0,63781.0,1.3095]
[1724464336042,0.00111044,63782.0,63781.0,0.9095]
[1724464336538,0.00111044,63782.0,63781.0,1.3095]
[1724464336737,0.00111044,63782.0,63781.0,0.9095]
[1724464337438,0.00111044,63782.0,63781.0,1.3095]
[1724464337939,0.00111044,63782.0,63781.0,0.9095]
[1724464338141,0.00111044,63782.0,63781.0,0.5487]
[1724464338630,0.00111044,63782.0,63781.0,1.3095]
[1724464338833,0.00111044,63782.0,63781.0,0.9095]
[1724464339045,0.00111044,63782.0,63781.0,0.43914]
[1724464342839,0.00111044,63782.0,63781.0,0.65914]
[1724464343343,0.00111044,63782.0,63781.0,0.70564]
[1724464345337,0.00111044,63782.0,63781.0,0.78398]
[1724464345642,0.00023443,63788.0,63781.0,0.78398]
[1724464345643,0.00023443,63788.0,63787.0,0.078332]
[1724464345843,0.00023443,63788.0,63787.0,0.439132]
[1724464346840,0.00028019,63788.0,63787.0,0.439132]
[1724464347439,0.00028019,63788.0,63787.0,0.50164286]
[1724464347744,0.00328019,63788.0,63787.0,0.50264286]
[1724464348243,0.00328019,63788.0,63787.0,0.519464]
[1724464351142,0.00328019,63788.0,63787.0,0.63878682]
[1724464353842,0.00328019,63788.0,63787.0,0.85878682]
[1724464355948,0.00328019,63788.0,63787.0,0.49798682]
[1724464356144,0.00328019,63788.0,63787.0,0.85878682]
[1724464356849,0.00328019,63788.0,63787.0,0.85878468]
[1724464359646,0.00328019,63788.0,63787.0,0.49798468]
[1724464359842,0.00328019,63788.0,63787.0,0.85878468]
[1724464360047,0.00328019,63788.0,63787.0,0.56045268]
[1724464361146,0.00328019,63788.0,63787.0,0.19965268]
[1724464361450,0.00328019,63788.0,63787.0,0.19965739]
[1724464361838,0.00328019,63788.0,63787.0,0.2779454]
[1724464362238,0.00328019,63788.0,63787.0,0.19965739]
[1724464367155,0.00328019,63788.0,63787.0,0.56045739]
[1724464367847,0.00328019,63788.0,63787.0,0.65422369]
[1724464368241,0.00328019,63788.0,63787.0,0.56045739]
[1724464369448,0.04673793,63793.0,63792.0,0.078326]
[1724464369652,0.04673793,63793.0,63792.0,0.19765139]
[1724464369953,0.04673793,63793.0,63792.0,0.27595247]
[1724464370156,0.04673793,63794.0,63793.0,0.078325]
[1724464370354,0.42311892,63797.0,63796.0,0.078321]
[1724464371553,0.42311892,63797.0,63796.0,0.079321]
[1724464371554,0.42611892,63797.0,63796.0,0.079321]
[1724464372055,0.42611892,63797.0,63796.0,0.080321]
[1724464372356,0.3638,63797.0,63796.0,0.080321]
[1724464372741,0.42611892,63797.0,63796.0,0.080321]
[1724464373553,0.3638,63797.0,63796.0,0.080321]
[1724464373855,0.06531892,63797.0,63796.0,0.080321]
[1724464374054,0.003,63797.0,63796.0,0.080321]
[1724464374249,0.3638,63797.0,63796.0,0.080321]
[1724464374456,0.47521892,63797.0,63796.0,0.080321]
[1724464374750,0.4129,63797.0,63796.0,0.14294434]
[1724464376853,0.47535928,63797.0,63796.0,0.080321]
[1724464377051,0.4129,63797.0,63796.0,0.080321]
[1724464377258,1.28314,63797.0,63796.0,0.080321]
[1724464379566,0.88314,63797.0,63796.0,0.080321]
[1724464379856,1.28314,63797.0,63796.0,0.080321]
[1724464380561,1.36146,63797.0,63796.0,0.002]
[1724464381162,1.43935865,63797.0,63796.0,0.04897249]
[1724464381362,1.43935865,63797.0,63796.0,0.002]
[1724464381660,0.96146,63797.0,63796.0,0.002]
[1724464383663,0.49122,63797.0,63796.0,0.002]
[1724464384360,0.49122,63797.0,63796.0,0.080321]
[1724464384859,0.96146,63797.0,63796.0,0.080321]
[1724464385258,0.49122,63797.0,63796.0,0.080321]
[1724464386364,0.96146,63797.0,63796.0,0.080321]
[1724464386860,0.49122,63797.0,63796.0,0.080321]
[1724464387058,0.96146,63797.0,63796.0,0.080321]
[1724464387857,0.49122,63797.0,63796.0,0.080321]
[1724464388257,0.3638,63797.0,63796.0,0.080321]
[1724464389360,0.3638,63797.0,63796.0,0.14294828]
[1724464390456,0.4262593,63797.0,63796.0,0.14294828]
[1724464391465,0.4262593,63797.0,63796.0,0.080321]
[1724464391770,0.4262593,63797.0,63796.0,0.14293991]
[1724464395069,0.4262593,63797.0,63796.0,0.080321]
[1724464395368,0.003,63797.0,63796.0,0.080321]
[1724464395870,0.003,63797.0,63796.0,0.158642]
[1724464396060,0.003,63797.0,63796.0,0.27794945]
[1724464396256,0.07789865,63809.0,63805.0,0.07831]
[1724464396257,0.04685017,63806.0,63805.0,0.07831]
[1724464396468,0.04685017,63807.0,63806.0,0.078309]
[1724464396766,0.04685017,63807.0,63806.0,0.14089598]
[1724464397165,0.04681464,63808.0,63805.0,0.06258698]
[1724464397364,0.0468142,63807.0,63805.0,0.06258698]
[1724464397566,0.0468142,63806.0,63805.0,0.07831]
[1724464397863,0.001,63806.0,63805.0,0.001]
[1724464398168,0.00104,63806.0,63805.0,0.1202917]
[1724464398366,0.00104,63806.0,63805.0,0.001]
[1724464398866,0.00104,63806.0,63805.0,0.08031]
[1724464399564,4e-05,63806.0,63805.0,0.08031]
[1724464401765,4e-05,63806.0,63805.0,0.30031]
[1724464401967,0.0624593,63822.0,63815.0,0.078297]
[1724464401968,0.04681817,63819.0,63815.0,0.078297]
[1724464402268,0.04681817,63822.0,63817.0,0.078295]
[1724464402465,0.078286,63825.0,63817.0,0.078295]
[1724464402466,0.04681817,63821.0,63817.0,0.078295]
[1724464403066,0.40761817,63821.0,63814.0,0.0453]
[1724464403272,0.48590917,63821.0,63814.0,0.0453]
[1724464403572,0.04681817,63819.0,63817.0,0.001]
[1724464403773,0.439091,63821.0,63817.0,0.001]
[1724464403774,0.04681817,63820.0,63817.0,0.001]
[1724464404463,0.04681817,63820.0,63815.0,0.079298]
[1724464404464,0.04681817,63820.0,63815.0,0.078298]
[1724464404971,0.04681817,63820.0,63817.0,0.001]
[1724464405170,0.439931,63821.0,63817.0,0.001]
[1724464405171,0.48674917,63821.0,63817.0,0.001]
[1724464405366,0.04681817,63820.0,63817.0,0.001]
[1724464405672,0.04681817,63820.0,63816.0,0.078297]
[1724464405673,0.48674917,63821.0,63816.0,0.078297]
[1724464405868,0.48590917,63821.0,63816.0,0.078297]
[1724464406068,0.48590917,63821.0,63817.0,0.001]
[1724464406774,0.48590917,63821.0,63816.0,0.078297]
[1724464406966,0.48590917,63821.0,63816.0,0.079297]
[1724464407162,0.48590917,63821.0,63817.0,0.001]
[1724464407368,0.439091,63821.0,63817.0,0.001]
[1724464408274,0.439091,63821.0,63817.0,0.080295]
[1724464410677,0.439091,63821.0,63818.0,0.078294]
[1724464411977,0.439091,63821.0,63818.0,0.079294]
[1724464412678,0.439091,63821.0,63819.0,0.078293]
[1724464413376,0.439091,63821.0,63818.0,0.002]
[1724464413377,0.439091,63821.0,63820.0,0.078292]
[1724464414479,0.439091,63821.0,63820.0,0.079292]
[1724464414881,0.439091,63821.0,63820.0,0.001]
[1724464415081,0.48590917,63821.0,63820.0,0.001]
[1724464416280,0.439091,63821.0,63820.0,0.002]
[1724464420178,0.5015503,63821.0,63820.0,0.002]
[1724464421179,0.439091,63821.0,63820.0,0.002]
[1724464425186,0.51698965,63821.0,63820.0,0.002]
[1724464426185,0.439091,63821.0,63820.0,0.002]
[1724464426492,0.38617869,63821.0,63817.0,0.0468381]
[1724464426790,0.38617869,63821.0,63815.0,0.0468381]
[1724464426791,0.078297,63816.0,63815.0,0.0468381]
[1724464427182,0.15634887,63816.0,63815.0,0.0468381]
[1724464427382,0.15634887,63816.0,63813.0,0.0783]
[1724464427587,0.078298,63815.0,63813.0,0.0783]
[1724464427890,0.078299,63814.0,63813.0,0.0783]
[1724464428095,0.078301,63813.0,63812.0,0.06245081]
[1724464428397,0.078301,63813.0,63811.0,0.00023513]
[1724464428398,0.078301,63813.0,63811.0,0.06268594]
[1724464428584,0.3608,63812.0,63811.0,0.00023513]
[1724464428783,0.3608,63812.0,63811.0,0.07853813]
[1724464429091,0.36084,63812.0,63811.0,0.07853813]
[1724464430697,0.36084,63812.0,63811.0,0.08053813]
[1724464432895,0.42325926,63812.0,63811.0,0.14298894]
[1724464433200,0.42325926,63812.0,63811.0,0.08053813]
[1724464433591,0.42325926,63812.0,63811.0,0.14313935]
[1724464433798,0.42325926,63812.0,63811.0,0.08053813]
[1724464434803,0.42325926,63812.0,63811.0,0.14313879]
[1724464434992,0.42325926,63812.0,63811.0,0.08053813]
[1724464435193,0.36084,63812.0,63811.0,0.08053813]
[1724464435501,0.42325926,63812.0,63811.0,0.08053813]
[1724464437400,0.36084,63812.0,63811.0,0.08053813]
[1724464442607,4e-05,63812.0,63811.0,0.08053813]
[1724464442907,4e-05,63812.0,63811.0,0.66994182]
[1724464443199,4e-05,63812.0,63811.0,0.76382239]
[1724464443603,0.04679019,63818.0,63817.0,0.078296]
[1724464443904,0.04679019,63819.0,63818.0,0.078294]
[1724464445300,0.04679019,63819.0,63818.0,0.079294]
[1724464446000,0.06241926,63825.0,63818.0,0.001]
[1724464446196,0.06241926,63825.0,63823.0,0.06256482]
[1724464446403,0.04677066,63826.0,63821.0,0.3608]
[1724464446594,0.04677066,63826.0,63825.0,0.06253138]
[1724464447001,0.04677066,63826.0,63825.0,0.078286]
[1724464447309,0.04677066,63827.0,63826.0,0.078285]
[1724464447510,0.04677066,63828.0,63827.0,0.078283]
[1724464448400,0.04677066,63829.0,63828.0,0.078282]
[1724464449402,0.439081,63829.0,63827.0,0.04786641]
[1724464449608,0.439081,63829.0,63828.0,0.001]
[1724464449999,0.3608,63829.0,63828.0,0.079282]
[1724464450401,0.3608,63829.0,63828.0,0.080282]
[1724464451003,0.4074724,63829.0,63828.0,0.080282]
[1724464452608,0.3608,63829.0,63828.0,0.080282]
[1724464453014,0.4074724,63829.0,63828.0,0.080282]
[1724464453199,0.3608,63829.0,63828.0,0.080282]
[1724464453605,0.4074724,63829.0,63828.0,0.080282]
[1724464453901,0.3608,63829.0,63828.0,0.080282]
[1724464460412,0.3608,63829.0,63828.0,0.550282]
[1724464460617,0.04664479,63834.0,63828.0,0.40966641]
[1724464460817,0.40744479,63834.0,63833.0,0.078276]
[1724464461117,0.06241926,63838.0,63829.0,0.0461]